bitfinex-derivatives/quotes_SOLF0:USTF0_20250419
["timestamp","ask_amount","ask_price","bid_price","bid_amount"]
[1745037930113,0.05427072,138.78,138.75,27.64539394]
[1745037942427,0.05427072,138.78,138.75,0.04539394]
[1745037942626,10.0,138.76,138.75,0.04539394]
[1745037943026,0.05427072,138.78,138.75,0.04539394]
[1745037960946,27.63427072,138.78,138.75,0.04539394]
[1745037965352,4.78868475,138.77,138.75,0.04539394]
[1745037965654,27.63427072,138.78,138.75,0.04539394]
[1745037965854,4.78903826,138.77,138.75,0.04539394]
[1745037966053,27.63427072,138.78,138.75,0.04539394]
[1745037966356,4.79225614,138.77,138.75,0.04539394]
[1745037966553,27.63427072,138.78,138.75,0.04539394]
[1745037966750,4.79220082,138.77,138.75,0.04539394]
[1745037966949,14.79191482,138.76,138.72,27.6]
[1745037967152,10.0,138.76,138.72,27.6]
[1745037967353,10.0,138.76,138.69,27.58]
[1745037968152,0.04746028,138.74,138.69,27.58]
[1745037969154,10.0,138.8,138.7,1.37360542]
[1745037969353,4.80008405,138.79,138.7,1.37360542]
[1745037969549,10.0,138.8,138.7,1.32379668]
[1745037969751,4.803514,138.79,138.7,1.32379668]
[1745037969955,10.0,138.8,138.7,1.32379668]
[1745037970157,4.80334596,138.79,138.7,1.32379668]
[1745037970357,10.0,138.83,138.69,27.58]
[1745037970558,4.80663595,138.82,138.7,1.32372564]
[1745037970756,0.05149898,138.76,138.7,1.32372564]
[1745037970958,0.05149898,138.76,138.75,0.04619238]
[1745037971249,0.05149898,138.76,138.75,27.58]
[1745037978065,4.86461034,138.76,138.75,27.58]
[1745037978265,4.86461034,138.76,138.74,0.04683437]
[1745037978468,0.05149898,138.76,138.74,0.04683437]
[1745037979568,4.81413365,138.75,138.74,0.04683437]
[1745037979767,4.81413606,138.75,138.74,0.04683437]
[1745037981672,4.81482259,138.75,138.74,0.04683437]
[1745037982971,4.81482259,138.75,138.69,27.54]
[1745037983170,4.81482259,138.74,138.69,27.54]
[1745037983371,10.0,138.77,138.69,27.54]
[1745037983572,4.81486533,138.76,138.69,27.54]
[1745037983773,4.81413429,138.75,138.66,27.54]
[1745037983972,10.0,138.73,138.66,27.54]
[1745037984171,4.86951815,138.72,138.69,0.04717872]
[1745037984471,4.81413429,138.71,138.69,0.04717872]
[1745037984674,4.81413429,138.7,138.63,27.54]
[1745037984973,4.81413429,138.69,138.63,27.54]
[1745037985271,4.81413429,138.68,138.63,27.54]
[1745037985473,10.0,138.7,138.63,27.54]
[1745037985772,0.054378,138.68,138.65,0.02573528]
[1745037988873,10.0,138.67,138.65,0.02573528]
[1745037989372,37.56,138.67,138.53,570.86]
[1745037989571,10.0,138.63,138.54,28.88504698]
[1745037989773,10.0,138.63,138.55,1.32504698]
[1745037990374,0.04953791,138.6,138.55,1.32504698]
[1745037990670,0.04953791,138.6,138.54,27.56]
[1745037992577,0.04953791,138.6,138.55,1.32526727]
[1745037993474,0.04953791,138.6,138.54,27.56]
[1745037993674,0.04953791,138.6,138.55,1.32519698]
[1745037995081,0.04953791,138.6,138.54,27.56]
[1745037995282,0.04953791,138.6,138.55,1.32524555]
[1745037995477,0.04953791,138.6,138.54,27.56]
[1745037995681,0.04953791,138.6,138.55,1.325249]
[1745037995882,0.04953791,138.6,138.54,27.56]
[1745038005291,0.04953791,138.6,138.55,1.32520984]
[1745038006188,0.04953791,138.6,138.54,27.56]
[1745038010899,0.04953791,138.6,138.46,571.3]
[1745038011095,0.04953791,138.6,138.47,28.885835]
[1745038011292,27.56,138.61,138.48,1.325835]
[1745038011598,0.04987927,138.55,138.48,1.325835]
[1745038012299,10.0,138.62,138.49,1.32546508]
[1745038012599,10.0,138.65,138.5,1.32546508]
[1745038012796,10.0,138.65,138.51,28.88546508]
[1745038012997,10.0,138.65,138.52,1.32546508]
[1745038013399,0.0483664,138.6,138.52,1.32546508]
[1745038015302,0.0483664,138.6,138.51,27.56]
[1745038015504,10.0,138.65,138.52,1.32523891]
[1745038015703,0.05458497,138.57,138.52,1.32523891]
[1745038016005,10.0,138.65,138.52,1.32523891]
[1745038016200,10.0,138.65,138.53,0.04987927]
[1745038016400,10.0,138.65,138.52,1.32523891]
[1745038016906,10.0,138.65,138.51,27.56]
[1745038017208,10.0,138.65,138.52,1.32514055]
[1745038017505,0.05295461,138.59,138.57,0.04672836]
[1745038017703,0.05295461,138.59,138.58,27.56]
[1745038017909,10.0,138.65,138.58,27.56]
[1745038018103,0.04812935,138.59,138.58,27.56]
[1745038018308,10.0,138.65,138.58,27.56]
[1745038018508,0.05395489,138.6,138.58,27.56]
[1745038018710,10.0,138.62,138.58,27.56]
[1745038018907,0.05244278,138.6,138.58,27.60623806]
[1745038024913,10.0,138.65,138.58,27.60623806]
[1745038025115,10.0,138.68,138.59,1.32485739]
[1745038025314,10.0,138.71,138.59,1.32485739]
[1745038025915,10.0,138.71,138.58,27.56]
[1745038026118,0.05394882,138.66,138.64,0.04799084]
[1745038026515,10.0,138.68,138.62,27.56]
[1745038026816,0.05192997,138.66,138.64,0.0534048]
[1745038031818,4.78039897,138.65,138.64,0.0534048]
[1745038032018,14.78039897,138.65,138.58,27.54]
[1745038032219,10.0,138.65,138.58,27.54]
[1745038032518,4.78174144,138.64,138.58,27.54]
[1745038032720,10.0,138.65,138.58,27.54]
[1745038032920,4.78122118,138.64,138.58,27.54]
[1745038033120,0.05042176,138.63,138.6,0.05482573]
[1745038034520,4.78298867,138.62,138.6,0.05482573]
[1745038034721,0.05042176,138.63,138.6,0.05482573]
[1745038046530,10.0,138.62,138.6,0.05482573]
[1745038048232,0.05042176,138.63,138.6,0.05482573]
[1745038050234,10.05042176,138.63,138.6,0.05482573]
[1745038059343,4.78966108,138.62,138.6,0.05482573]
[1745038059544,10.05042176,138.63,138.6,0.05482573]
[1745038059743,4.7896304,138.62,138.6,0.05482573]
[1745038060043,10.05042176,138.63,138.6,0.05482573]
[1745038060243,4.78943784,138.62,138.6,0.05482573]
[1745038060542,10.05042176,138.63,138.6,0.05482573]
[1745038060741,4.78932205,138.62,138.6,0.05482573]
[1745038061041,10.05042176,138.63,138.6,0.05482573]
[1745038061240,4.78932583,138.62,138.6,0.05482573]
[1745038061443,10.05042176,138.63,138.6,0.05482573]
[1745038061742,4.78914065,138.62,138.6,0.05482573]
[1745038061941,10.05042176,138.63,138.6,0.05482573]
[1745038062142,4.7891434,138.62,138.6,0.05482573]
[1745038062343,10.05042176,138.63,138.6,0.05482573]
[1745038062544,4.78920252,138.62,138.6,0.05482573]
[1745038062747,10.05042176,138.63,138.6,0.05482573]
[1745038062945,4.78905708,138.62,138.6,0.05482573]
[1745038063145,10.05042176,138.63,138.6,0.05482573]
[1745038063346,4.78904312,138.62,138.6,0.05482573]
[1745038063648,10.05042176,138.63,138.6,0.05482573]
[1745038063845,4.78885512,138.62,138.6,0.05482573]
[1745038064139,10.05042176,138.63,138.6,0.05482573]
[1745038064343,4.78893937,138.62,138.6,0.05482573]
[1745038064539,10.05042176,138.63,138.6,0.05482573]
[1745038064745,4.78885389,138.62,138.6,0.05482573]
[1745038064945,10.05042176,138.63,138.6,0.05482573]
[1745038065243,32.30885525,138.62,138.6,0.05482573]
[1745038065444,10.0,138.6,138.49,1.32530463]
[1745038065643,4.78822783,138.59,138.49,1.32530463]
[1745038065843,4.78822783,138.58,138.5,1.32567387]
[1745038066045,10.0,138.6,138.48,25.45496039]
[1745038066346,4.7873209,138.59,138.49,1.32568028]
[1745038066545,9.3264186,138.58,138.49,1.32568028]
[1745038066845,0.04694795,138.55,138.53,0.04914733]
[1745038067048,27.52,138.57,138.53,0.04914733]
[1745038067245,0.04784064,138.55,138.53,0.04914733]
[1745038075947,10.0,138.63,138.53,0.04914733]
[1745038076254,4.79816737,138.62,138.52,1.32550126]
[1745038076453,9.35157572,138.61,138.52,1.32550126]
[1745038076652,4.79913341,138.6,138.52,1.32550126]
[1745038076854,27.5,138.59,138.47,27.5]
[1745038077055,0.05376565,138.57,138.55,0.0500734]
[1745038077249,4.79777907,138.56,138.55,0.0500734]
[1745038077553,0.05376565,138.57,138.54,0.05242115]
[1745038077748,4.55340835,138.56,138.48,1.32553505]
[1745038077953,46.84896133,138.55,138.47,27.5]
[1745038078251,42.05340835,138.55,138.47,27.5]
[1745038078552,4.55340835,138.54,138.47,27.5]
[1745038079051,0.05537217,138.52,138.49,0.04456682]
[1745038080753,10.0,138.59,138.49,0.04456682]
[1745038080955,9.33287044,138.58,138.49,0.04456682]
[1745038081253,4.54378167,138.58,138.48,1.32577496]
[1745038081449,4.54378167,138.57,138.48,1.32577496]
[1745038081854,0.04620498,138.54,138.51,0.05286757]
[1745038082149,0.04620498,138.54,138.52,27.5]
[1745038090456,10.0,138.61,138.52,27.5]
[1745038090656,4.79035074,138.6,138.52,27.5]
[1745038090857,4.79005217,138.59,138.52,27.5]
[1745038091057,4.54494504,138.6,138.52,27.5]
[1745038091259,4.79033904,138.59,138.52,27.5]
[1745038091557,4.54494504,138.6,138.52,27.5]
[1745038091757,0.04700985,138.57,138.52,27.5]
[1745038092661,0.04700985,138.57,138.53,0.05272974]
[1745038093661,4.54651167,138.56,138.53,0.05272974]
[1745038093860,0.04700985,138.57,138.53,0.05272974]
[1745038094560,4.54743792,138.56,138.53,0.05272974]
[1745038094860,0.04700985,138.57,138.53,0.05272974]
[1745038095960,9.34648745,138.56,138.53,0.05272974]
[1745038096159,4.79440412,138.55,138.53,0.05272974]
[1745038096359,4.55044035,138.54,138.53,0.05272974]
[1745038097160,4.55044035,138.54,138.49,27.5]
[1745038097358,14.55044035,138.53,138.49,27.5]
[1745038097660,4.55044035,138.52,138.49,27.5]
[1745038098058,10.0,138.53,138.49,27.5]
[1745038098261,0.04663549,138.52,138.49,27.55140358]
[1745038100462,4.54683231,138.51,138.49,27.55140358]
[1745038100757,0.04663549,138.52,138.49,27.55140358]
[1745038100963,0.04663549,138.52,138.49,0.05140358]
[1745038101261,4.79411755,138.51,138.49,0.05140358]
[1745038101460,4.54878306,138.5,138.49,0.05140358]
[1745038101762,4.54878306,138.5,138.46,27.48]
[1745038101961,4.54878306,138.49,138.46,27.48]
[1745038102563,4.54878306,138.48,138.46,27.48]
[1745038102758,0.04616732,138.49,138.46,27.52201065]
[1745038103956,4.54922802,138.48,138.46,27.52201065]
[1745038104666,0.04616732,138.49,138.46,27.52201065]
[1745038106964,37.48,138.58,138.46,27.52201065]
[1745038107170,4.55010924,138.57,138.47,1.32602278]
[1745038107772,4.55010924,138.56,138.47,1.32602278]
[1745038108170,0.05505441,138.53,138.47,1.32602278]
[1745038108370,0.05505441,138.53,138.5,0.04788577]
[1745038108570,0.05505441,138.53,138.51,27.48]
[1745038110468,37.48,138.61,138.51,27.48]
[1745038110676,4.79942806,138.6,138.51,27.48]
[1745038110873,4.79942806,138.59,138.51,27.48]
[1745038111077,10.0,138.61,138.51,27.48]
[1745038111375,9.35209877,138.6,138.51,27.48]
[1745038111572,4.55300128,138.6,138.51,27.48]
[1745038111771,0.05259573,138.57,138.54,0.05048344]
[1745038112074,0.05259573,138.57,138.55,27.48]
[1745038113473,4.55404189,138.56,138.55,27.48]
[1745038120682,4.55404189,138.56,138.54,0.05048344]
[1745038120981,4.55404189,138.55,138.54,0.05048344]
[1745038121982,0.05259573,138.57,138.54,0.05048344]
[1745038122484,4.55616579,138.56,138.54,0.05048344]
[1745038122784,0.05259573,138.57,138.54,0.05048344]
[1745038124185,4.5568907,138.56,138.54,0.05048344]
[1745038124386,4.5568907,138.56,138.43,571.48]
[1745038124587,10.0,138.54,138.44,28.80605319]
[1745038124886,10.0,138.54,138.45,1.32605319]
[1745038125083,4.5568907,138.53,138.45,1.32605319]
[1745038125386,4.5568907,138.53,138.44,27.48]
[1745038125579,0.05094958,138.5,138.48,0.05027781]
[1745038142397,0.05094958,138.5,138.49,27.46]
[1745038145799,4.61028858,138.5,138.49,27.46]
[1745038146396,4.61028858,138.5,138.48,0.05027781]
[1745038146999,0.05094958,138.5,138.48,0.05027781]
[1745038147401,4.5597109,138.49,138.48,0.05027781]
[1745038148202,4.5597109,138.49,138.46,27.46]
[1745038148503,4.5597109,138.48,138.46,27.46]
[1745038148701,4.5597109,138.48,138.43,598.94]
[1745038149103,4.5597109,138.47,138.43,598.94]
[1745038149500,0.05262824,138.46,138.43,598.94]
[1745038150103,0.05262824,138.46,138.43,598.98247113]
[1745038150301,0.05262824,138.46,138.43,27.50247113]
[1745038156706,0.05262824,138.46,138.44,1.3263112]
[1745038157308,0.05262824,138.46,138.43,27.50247113]
[1745038158506,0.05262824,138.46,138.44,28.80613272]
[1745038158703,0.05262824,138.46,138.45,1.32613272]
[1745038158908,0.05262824,138.46,138.44,27.48]
[1745038164910,10.0,138.57,138.45,1.32629363]
[1745038165210,10.0,138.54,138.45,1.32629363]
[1745038165414,10.0,138.5,138.44,27.48]
[1745038165706,14.56313641,138.53,138.44,27.48]
[1745038166011,0.05217086,138.5,138.47,0.04713742]
[1745038166208,4.56494952,138.52,138.45,27.44]
[1745038166505,0.05043356,138.5,138.47,0.0523284]
[1745038166710,4.56494952,138.49,138.47,0.0523284]
[1745038166910,0.05043356,138.5,138.47,0.0523284]
[1745038170111,4.56923759,138.49,138.47,0.0523284]
[1745038170712,0.05043356,138.5,138.47,0.0523284]
[1745038172111,4.56982696,138.49,138.47,0.0523284]
[1745038172712,0.05043356,138.5,138.47,0.0523284]
[1745038173614,10.05043356,138.5,138.47,0.0523284]
[1745038174714,4.57017925,138.49,138.47,0.0523284]
[1745038175415,4.57017925,138.48,138.47,0.0523284]
[1745038178812,0.05043356,138.5,138.47,0.0523284]
[1745038179218,4.57054077,138.49,138.47,0.0523284]
[1745038179820,0.05043356,138.5,138.47,0.0523284]
[1745038180318,4.57104169,138.49,138.47,0.0523284]
[1745038180819,0.05043356,138.5,138.47,0.0523284]
[1745038181920,4.57189037,138.49,138.47,0.0523284]
[1745038182621,0.05043356,138.5,138.47,0.0523284]
[1745038183921,4.57291629,138.49,138.47,0.0523284]
[1745038184416,4.57291629,138.48,138.47,0.0523284]
[1745038188626,0.05043356,138.5,138.47,0.0523284]
[1745038190431,27.44,138.62,138.48,571.74]
[1745038190731,38.08550817,138.61,138.49,27.44]
[1745038191029,32.23768281,138.6,138.49,27.44]
[1745038191230,4.81768281,138.59,138.49,27.44]
[1745038191422,4.81768281,138.58,138.49,27.44]
[1745038191626,0.04931402,138.55,138.53,0.0524878]
[1745038191823,9.38911892,138.54,138.53,0.0524878]
[1745038192128,9.38911892,138.54,138.53,27.4724878]
[1745038192329,4.57139427,138.54,138.53,27.4724878]
[1745038194132,10.0,138.63,138.53,27.4724878]
[1745038194431,4.81311786,138.62,138.53,27.42]
[1745038194630,4.81311786,138.61,138.53,27.42]
[1745038194926,4.81311786,138.6,138.53,27.42]
[1745038195126,37.42,138.66,138.53,27.42]
[1745038195325,0.04718463,138.58,138.55,0.05087866]
[1745038195532,37.42,138.66,138.53,27.42]
[1745038195732,0.05369069,138.58,138.55,0.05273679]
[1745038195932,37.42,138.66,138.53,27.42]
[1745038196125,0.05480897,138.58,138.55,0.05301629]
[1745038196329,0.05429791,138.58,138.55,0.0498889]
[1745038200540,0.05429791,138.58,138.56,27.4]
[1745038206037,0.05429791,138.58,138.55,0.0498889]
[1745038206238,4.47417236,138.57,138.55,0.0498889]
[1745038206738,0.05429791,138.58,138.55,0.0498889]
[1745038236965,4.49231332,138.57,138.55,0.0498889]
[1745038237365,0.05429791,138.58,138.55,0.0498889]
[1745038237766,10.0,138.66,138.55,0.0498889]
[1745038237966,4.81660166,138.65,138.55,0.0498889]
[1745038238264,4.81660166,138.64,138.54,598.72]
[1745038238465,4.81660166,138.63,138.54,598.72]
[1745038238665,4.81660166,138.62,138.54,598.72]
[1745038238865,0.04592216,138.6,138.54,598.72]
[1745038239467,0.04592216,138.6,138.56,0.04755293]
[1745038239766,4.49279508,138.59,138.56,0.04755293]
[1745038240065,0.04592216,138.6,138.56,0.04755293]
[1745038241168,4.49316484,138.59,138.56,0.04755293]
[1745038241471,0.04592216,138.6,138.56,0.04755293]
[1745038242671,4.49280858,138.59,138.57,27.38]
[1745038243567,4.49280858,138.58,138.57,27.38]
[1745038244964,4.49280858,138.58,138.56,0.04755293]
[1745038245170,9.31016408,138.57,138.52,27.38]
[1745038245367,4.8173555,138.56,138.52,27.38]
[1745038245566,4.81735692,138.55,138.52,27.38]
[1745038245767,4.49280858,138.57,138.52,27.38]
[1745038246069,9.31032853,138.56,138.52,27.38]
[1745038246272,4.81751995,138.55,138.52,27.38]
[1745038246465,4.54189602,138.56,138.53,0.04607838]
[1745038246670,4.8159719,138.55,138.53,0.04607838]
[1745038246869,4.49280858,138.54,138.53,0.04607838]
[1745038248970,0.04908744,138.56,138.53,0.04607838]
[1745038260375,37.38,138.66,138.53,1.37148902]
[1745038260676,4.81535828,138.65,138.53,1.32541064]
[1745038260974,9.30712605,138.64,138.53,1.32541064]
[1745038261175,4.81535828,138.63,138.53,1.32541064]
[1745038261474,0.04879933,138.59,138.53,1.32541064]
[1745038261675,4.49176777,138.58,138.53,1.32541064]
[1745038261874,4.81658184,138.57,138.52,27.38]
[1745038262075,4.81658184,138.56,138.52,27.38]
[1745038262276,4.49176777,138.55,138.52,27.38]
[1745038262974,4.49176777,138.54,138.52,27.38]
[1745038263375,0.04990434,138.56,138.52,27.38]
[1745038263774,4.49162647,138.55,138.52,27.38]
[1745038264177,4.49162647,138.54,138.52,27.38]
[1745038264775,0.04990434,138.56,138.52,27.38]
[1745038265576,4.48987373,138.55,138.52,27.38]
[1745038266174,4.48987373,138.54,138.52,27.38]
[1745038266376,0.04990434,138.56,138.52,27.38]
[1745038266576,4.48924903,138.55,138.52,27.38]
[1745038267179,4.48924903,138.54,138.52,27.38]
[1745038268276,0.04990434,138.56,138.52,27.38]
[1745038268980,4.48824477,138.55,138.53,0.04642485]
[1745038269474,0.04990434,138.56,138.53,0.04642485]
[1745038269982,4.811699,138.55,138.53,0.04642485]
[1745038270181,0.04990434,138.56,138.53,0.04642485]
[1745038270878,4.81120669,138.55,138.53,0.04642485]
[1745038271079,0.04990434,138.56,138.53,0.04642485]
[1745038271277,4.4878965,138.54,138.53,0.04642485]
[1745038275586,9.29676619,138.54,138.49,27.36]
[1745038275887,4.4878965,138.53,138.49,27.36]
[1745038276085,4.4878965,138.53,138.44,571.44]
[1745038276282,4.4878965,138.53,138.45,28.68612541]
[1745038276487,4.4878965,138.52,138.45,27.36]
[1745038276787,0.05399279,138.5,138.45,27.36]
[1745038278889,0.05399279,138.5,138.46,0.04623725]
[1745038279193,4.80482035,138.49,138.46,0.04623725]
[1745038279484,4.48212203,138.48,138.46,0.04623725]
[1745038279890,0.05399279,138.5,138.46,0.04623725]
[1745038280191,4.80147564,138.49,138.46,0.04623725]
[1745038280385,0.05399279,138.5,138.46,0.04623725]
[1745038280992,4.476556,138.49,138.46,0.04623725]
[1745038281194,0.05399279,138.5,138.46,0.04623725]
[1745038288797,10.05399279,138.5,138.46,0.04623725]
[1745038288999,0.05399279,138.5,138.46,0.04623725]
[1745038296005,10.0,138.48,138.42,27.34]
[1745038296204,27.34,138.5,138.42,27.34]
[1745038297102,0.05296783,138.47,138.45,0.04927666]
[1745038301910,0.05296783,138.47,138.45,27.40927666]
[1745038306812,0.05296783,138.47,138.45,0.04927666]
[1745038314120,4.48452703,138.46,138.45,0.04927666]
[1745038314321,9.29328226,138.46,138.39,571.58]
[1745038314518,14.48452703,138.46,138.39,598.92]
[1745038314722,9.28656477,138.45,138.39,27.34]
[1745038314922,4.48452703,138.45,138.39,27.34]
[1745038315320,4.48452703,138.44,138.39,27.34]
[1745038315516,4.53138563,138.43,138.39,27.34]
[1745038316121,4.53138563,138.43,138.4,0.054704]
[1745038316319,0.0468586,138.43,138.4,0.054704]
[1745038318926,10.0468586,138.43,138.4,0.054704]
[1745038319521,4.46796162,138.42,138.33,27.34]
[1745038319727,10.0,138.4,138.33,27.34]
[1745038320527,0.04892638,138.38,138.33,27.34]
[1745038322828,0.04892638,138.38,138.34,1.3272598]
[1745038323426,0.04892638,138.38,138.33,27.34]
[1745038323627,0.04892638,138.38,138.34,1.32719215]
[1745038325627,0.04892638,138.38,138.33,27.34]
[1745038328533,4.48727076,138.37,138.33,27.34]
[1745038328830,4.48727076,138.36,138.33,27.34]
[1745038329631,0.04892638,138.38,138.33,27.34]
[1745038329933,10.04892638,138.38,138.33,27.34]
[1745038330231,4.48642031,138.37,138.33,27.34]
[1745038330930,0.04892638,138.38,138.33,27.34]
[1745038332432,4.48564358,138.37,138.33,27.34]
[1745038332634,0.04892638,138.38,138.33,27.34]
[1745038332836,0.04892638,138.38,138.34,0.05060202]
[1745038333335,4.48452365,138.37,138.34,0.05060202]
[1745038334035,4.48452365,138.36,138.34,0.05060202]
[1745038334735,0.04892638,138.38,138.34,0.05060202]
[1745038335237,4.48541428,138.37,138.34,0.05060202]
[1745038335736,4.48541428,138.36,138.34,0.05060202]
[1745038336036,4.48541428,138.35,138.34,0.05060202]
[1745038336237,4.48541428,138.35,138.3,27.34]
[1745038336638,4.48541428,138.34,138.3,27.34]
[1745038336933,10.0,138.39,138.3,27.34]
[1745038337138,4.80560774,138.38,138.3,27.34]
[1745038337433,10.0,138.36,138.3,27.34]
[1745038337637,4.85273866,138.35,138.3,27.34]
[1745038337835,0.04875611,138.35,138.3,27.34]
[1745038339537,4.47989443,138.34,138.3,27.34]
[1745038340339,0.04875611,138.35,138.3,27.34]
[1745038342241,27.36,138.45,138.31,1.32759256]
[1745038342439,4.80329062,138.44,138.31,1.32759256]
[1745038342739,4.80329062,138.43,138.32,1.32730296]
[1745038342935,4.80329062,138.42,138.33,1.32730296]
[1745038343141,10.0,138.46,138.34,599.62]
[1745038343340,0.05079463,138.39,138.35,1.32730296]
[1745038343731,4.80347694,138.43,138.35,1.32730296]
[1745038343933,0.0526634,138.38,138.35,1.32730296]
[1745038344136,4.8027818,138.45,138.35,1.32730296]
[1745038344442,0.04847506,138.38,138.34,599.62]
[1745038344638,10.0,138.46,138.35,1.32718944]
[1745038344639,4.8027818,138.43,138.35,1.32718944]
[1745038344834,0.04778438,138.37,138.35,1.32718944]
[1745038345140,4.80252917,138.45,138.35,1.32718944]
[1745038345341,9.2827085,138.44,138.35,1.32718944]
[1745038345642,4.48017933,138.44,138.39,0.04585037]
[1745038345940,4.48017933,138.43,138.4,27.32]
[1745038346536,0.05166538,138.43,138.4,27.32]
[1745038349143,4.47789313,138.49,138.41,1.32664503]
[1745038349342,4.47789313,138.49,138.4,27.32]
[1745038349941,4.79661841,138.48,138.41,27.32]
[1745038350141,9.27451154,138.47,138.41,27.32]
[1745038350344,4.47789313,138.47,138.41,27.32]
[1745038350541,0.05392139,138.46,138.41,27.32]
[1745038351043,4.47789313,138.45,138.41,27.32]
[1745038351244,4.47789313,138.44,138.41,27.32]
[1745038351748,0.05392139,138.46,138.41,27.32]
[1745038352247,4.47441933,138.45,138.41,27.32]
[1745038352747,4.47441933,138.44,138.41,27.32]
[1745038353350,0.05392139,138.46,138.41,27.32]
[1745038353550,4.47445679,138.45,138.41,27.32]
[1745038353948,4.47445679,138.44,138.41,27.32]
[1745038354751,0.05392139,138.46,138.41,27.32]
[1745038355656,4.47606494,138.45,138.41,27.32]
[1745038356252,4.47606494,138.44,138.41,27.32]
[1745038357052,0.05392139,138.46,138.41,27.32]
[1745038358053,4.47541994,138.45,138.41,27.32]
[1745038358753,4.47541994,138.44,138.41,27.32]
[1745038359353,0.05392139,138.46,138.41,27.32]
[1745038359553,4.79618708,138.45,138.41,27.32]
[1745038359753,4.47407673,138.45,138.41,27.32]
[1745038360253,4.47407673,138.44,138.41,27.32]
[1745038360756,4.47407673,138.43,138.41,27.32]
[1745038361354,0.05392139,138.46,138.41,27.32]
[1745038361555,10.0,138.44,138.38,27.32]
[1745038361953,0.0543117,138.42,138.38,27.32]
[1745038362254,4.47493779,138.41,138.38,27.32]
[1745038363054,4.47493779,138.4,138.38,27.32]
[1745038363655,0.0543117,138.42,138.38,27.32]
[1745038363858,4.79709015,138.41,138.38,27.32]
[1745038364056,0.0543117,138.42,138.38,27.32]
[1745038364254,9.27287059,138.41,138.38,27.32]
[1745038364454,4.47545008,138.4,138.38,27.32]
[1745038364750,4.47545008,138.4,138.29,27.32]
[1745038364948,10.0,138.38,138.3,27.32]
[1745038365255,0.04581852,138.35,138.3,27.32]
[1745038368159,0.04581852,138.35,138.26,572.1]
[1745038368453,4.46865357,138.34,138.31,0.05494008]
[1745038368652,27.32,138.37,138.31,0.05494008]
[1745038368861,0.04732323,138.34,138.31,0.05494008]
[1745038376263,0.04732323,138.34,138.31,27.35494008]
[1745038382465,0.04732323,138.34,138.31,0.05494008]
[1745038384867,0.04732323,138.34,138.26,572.1]
[1745038385263,10.0,138.32,138.25,27.32]
[1745038385969,4.45108865,138.31,138.25,27.32]
[1745038386269,0.05338777,138.3,138.13,25.65643095]
[1745038386569,10.0,138.29,138.16,572.44]
[1745038386771,10.0,138.29,138.17,1.32863394]
[1745038386972,0.04600271,138.24,138.18,27.32]
[1745038387170,0.04600271,138.24,138.19,1.32863394]
[1745038388270,0.04600271,138.24,138.2,0.05463936]
[1745038389270,37.32,138.32,138.2,0.05463936]
[1745038389572,37.32,138.32,138.19,1.32863394]
[1745038390174,10.0,138.32,138.19,1.32863394]
[1745038390373,10.0,138.32,138.18,27.32]
[1745038390674,0.05148825,138.27,138.19,1.32854812]
[1745038391272,0.05148825,138.27,138.24,0.04772645]
[1745038409486,4.46759999,138.26,138.24,0.04772645]
[1745038409886,0.05148825,138.27,138.24,0.04772645]
[1745038411086,4.46795461,138.26,138.24,0.04772645]
[1745038411687,0.05148825,138.27,138.24,0.04772645]
[1745038413487,4.46574005,138.26,138.24,0.04772645]
[1745038414188,0.05148825,138.27,138.24,0.04772645]
[1745038420393,4.46301753,138.33,138.24,1.37588992]
[1745038420591,4.46301753,138.33,138.25,1.32816347]
[1745038420792,4.46301753,138.32,138.26,27.3]
[1745038421492,27.3,138.36,138.26,27.3]
[1745038421795,0.04582698,138.3,138.26,27.3]
[1745038422494,0.04582698,138.3,138.27,0.0493546]
[1745038423786,0.04582698,138.3,138.27,1.37747051]
[1745038423993,4.78562812,138.36,138.27,1.37747051]
[1745038424188,10.0,138.37,138.27,1.37747051]
[1745038424189,4.46400528,138.35,138.27,1.32811591]
[1745038424895,10.0,138.4,138.27,1.32811591]
[1745038425096,0.04931163,138.32,138.3,0.05474413]
[1745038425396,4.78510775,138.38,138.31,27.3]
[1745038425596,0.04625644,138.32,138.31,27.3]
[1745038425896,10.0,138.4,138.33,0.04872306]
[1745038426098,4.78440979,138.39,138.31,27.3]